bitfinex/quotes_BTCUSD_20250604
["timestamp","ask_amount","ask_price","bid_price","bid_amount"]
[1749018263146,0.59688528,105260.0,105250.0,0.9275]
[1749018263618,0.56476513,105260.0,105250.0,0.9275]
[1749018264021,0.58252827,105260.0,105250.0,0.9275]
[1749018264420,0.56476513,105260.0,105250.0,0.9275]
[1749018264793,0.58252806,105260.0,105250.0,0.9275]
[1749018265003,0.56476513,105260.0,105250.0,0.9275]
[1749018266038,0.58252722,105260.0,105250.0,0.9275]
[1749018266511,0.58252721,105260.0,105250.0,0.9275]
[1749018266675,0.58252724,105260.0,105250.0,0.9275]
[1749018267043,0.58252739,105260.0,105250.0,0.9275]
[1749018267262,0.56476513,105260.0,105250.0,0.9275]
[1749018267498,0.60028969,105260.0,105250.0,0.9275]
[1749018267712,0.58252741,105260.0,105250.0,0.9275]
[1749018268151,0.60028969,105260.0,105250.0,0.9275]
[1749018268375,0.58252741,105260.0,105250.0,0.8962]
[1749018268594,0.56475728,105260.0,105250.0,0.8962]
[1749018270774,0.5825195,105260.0,105250.0,0.8962]
[1749018271000,0.56475728,105260.0,105250.0,0.8962]
[1749018271681,0.48666506,105260.0,105250.0,0.92782]
[1749018271898,0.46890298,105260.0,105250.0,0.89612]
[1749018272117,0.48666644,105260.0,105250.0,0.89612]
[1749018272337,0.46890298,105260.0,105250.0,0.89612]
[1749018273958,0.48666616,105260.0,105250.0,0.89612]
[1749018274185,0.46890298,105260.0,105250.0,0.89612]
[1749018274423,0.48666615,105260.0,105250.0,0.89612]
[1749018274654,0.46890298,105260.0,105250.0,0.89612]
[1749018274873,0.48666616,105260.0,105250.0,0.89612]
[1749018275118,0.46890298,105260.0,105250.0,0.89612]
[1749018275339,0.48666615,105260.0,105250.0,0.89612]
[1749018275759,0.46890298,105260.0,105250.0,0.89612]
[1749018277029,0.48666647,105260.0,105250.0,0.89612]
[1749018277236,0.46890298,105260.0,105250.0,0.89612]
[1749018277669,0.48666647,105260.0,105250.0,0.89612]
[1749018277877,0.46890298,105260.0,105250.0,0.89612]
[1749018278513,0.55231117,105260.0,105250.0,0.89612]
[1749018278737,0.48666647,105260.0,105250.0,0.89612]
[1749018278975,0.46890298,105260.0,105250.0,0.89612]
[1749018279415,0.48666638,105260.0,105250.0,0.89612]
[1749018279636,0.48666647,105260.0,105250.0,0.89612]
[1749018280093,0.50442996,105260.0,105250.0,0.89612]
[1749018280314,0.48666647,105260.0,105250.0,0.89612]
[1749018280533,0.50442996,105260.0,105250.0,0.89612]
[1749018280750,0.48666647,105260.0,105250.0,0.89612]
[1749018280960,0.50442998,105260.0,105250.0,0.89612]
[1749018281178,0.48666647,105260.0,105250.0,0.89612]
[1749018281850,0.50442997,105260.0,105250.0,0.89612]
[1749018282282,0.48666647,105260.0,105250.0,0.89612]
[1749018283854,0.50443338,105260.0,105250.0,0.89612]
[1749018284073,0.50443339,105260.0,105250.0,0.89612]
[1749018284286,0.48666647,105260.0,105250.0,0.89612]
[1749018292396,0.50443346,105260.0,105250.0,0.89612]
[1749018292825,0.48666647,105260.0,105250.0,0.89612]
[1749018293496,0.50443373,105260.0,105250.0,0.89612]
[1749018293719,0.48666647,105260.0,105250.0,0.89612]
[1749018294400,0.50443433,105260.0,105250.0,0.89612]
[1749018294615,0.48666647,105260.0,105250.0,0.89612]
[1749018295285,0.50443442,105260.0,105250.0,0.89612]
[1749018295506,0.48666647,105260.0,105250.0,0.89612]
[1749018296155,0.50443453,105260.0,105250.0,0.89612]
[1749018296560,0.48666647,105260.0,105250.0,0.89612]
[1749018297214,0.50443509,105260.0,105250.0,0.89612]
[1749018297419,0.48666647,105260.0,105250.0,0.89612]
[1749018298730,0.48666647,105260.0,105250.0,0.51952]
[1749018298942,0.56908121,105260.0,105250.0,0.896]
[1749018299189,0.5834159,105260.0,105250.0,0.896]
[1749018299411,0.58342952,105260.0,105250.0,0.896]
[1749018300756,0.67928382,105260.0,105250.0,0.51952]
[1749018300980,0.65482405,105260.0,105250.0,0.896]
[1749018301215,0.70110564,105260.0,105250.0,0.896]
[1749018301885,0.70109979,105260.0,105250.0,0.896]
[1749018302564,0.71886859,105260.0,105250.0,0.896]
[1749018302785,0.70109979,105260.0,105250.0,0.896]
[1749018303018,0.73663627,105260.0,105250.0,0.896]
[1749018303866,0.73663627,105260.0,105250.0,0.60752]
[1749018304078,0.7544043,105260.0,105250.0,0.896]
[1749018304359,0.73663627,105260.0,105250.0,0.896]
[1749018305775,0.73661418,105260.0,105250.0,0.896]
[1749018307650,0.75438281,105260.0,105250.0,0.896]
[1749018307873,0.73661418,105260.0,105250.0,0.896]
[1749018308574,0.7188397,105260.0,105250.0,0.896]
[1749018308803,0.73660833,105260.0,105250.0,0.896]
[1749018309036,0.7188397,105260.0,105250.0,0.896]
[1749018309260,0.75237048,105260.0,105250.0,0.51952]
[1749018309500,0.01454085,105250.0,105230.0,0.01484283]
[1749018309722,0.0643863,105250.0,105240.0,0.37648]
[1749018309945,0.17457392,105250.0,105240.0,0.896]
[1749018310382,0.20308992,105250.0,105240.0,0.896]
[1749018310876,0.20508992,105250.0,105240.0,0.896]
[1749018311340,0.22085616,105250.0,105240.0,0.896]
[1749018311565,0.24059988,105250.0,105240.0,0.896]
[1749018311782,0.23959988,105250.0,105240.0,0.896]
[1749018312000,0.24159988,105250.0,105240.0,0.896]
[1749018312460,0.25936626,105250.0,105240.0,0.896]
[1749018312677,0.2690524,105250.0,105240.0,0.896]
[1749018312893,0.26905242,105250.0,105240.0,0.896]
[1749018313559,0.25128602,105250.0,105240.0,0.896]
[1749018313778,0.26901091,105250.0,105240.0,0.896]
[1749018314215,0.25124451,105250.0,105240.0,0.896]
[1749018314719,0.26901108,105250.0,105240.0,0.896]
[1749018314938,0.13905644,105250.0,105240.0,0.896]
[1749018315164,0.47905644,105250.0,105240.0,0.9275]
[1749018315414,0.1008543,105250.0,105240.0,0.93688363]
[1749018315656,0.4908543,105250.0,105240.0,0.93688363]
[1749018315890,0.4908543,105250.0,105240.0,0.9275]
[1749018318220,0.395,105250.0,105240.0,0.9275]
[1749018318954,0.055,105250.0,105240.0,0.9275]
[1749018319176,0.055,105250.0,105240.0,0.93725169]
[1749018320094,0.052,105250.0,105240.0,0.93725169]
[1749018320323,0.053,105250.0,105240.0,0.93725169]
[1749018320546,0.051,105250.0,105240.0,0.93725169]
[1749018320991,0.052,105250.0,105240.0,0.93725169]
[1749018349260,0.052,105250.0,105240.0,0.92165169]
[1749018352363,0.052,105250.0,105240.0,0.93745169]
[1749018353821,0.052,105250.0,105240.0,0.92165169]
[1749018354247,0.052,105250.0,105240.0,0.63317169]
[1749018354472,0.052,105250.0,105240.0,0.92153169]
[1749018357127,0.052,105250.0,105240.0,0.90563169]
[1749018358668,0.052,105250.0,105240.0,0.93723169]
[1749018364010,0.052,105250.0,105240.0,0.56087169]
[1749018364230,0.052,105250.0,105240.0,0.60744]
[1749018364231,0.57189288,105250.0,105240.0,0.60744]
[1749018364440,0.58502779,105250.0,105240.0,0.60744]
[1749018364717,0.58502779,105250.0,105240.0,0.89576]
[1749018364718,0.59774919,105250.0,105240.0,0.89576]
[1749018364930,0.57998172,105250.0,105240.0,0.89576]
[1749018365383,0.61350596,105250.0,105240.0,0.89576]
[1749018365600,0.6312731,105250.0,105240.0,0.89576]
[1749018365822,0.61350596,105250.0,105240.0,0.89576]
[1749018366685,0.63127141,105250.0,105240.0,0.89576]
[1749018366898,0.63127162,105250.0,105240.0,0.89576]
[1749018367112,0.61350596,105250.0,105240.0,0.89576]
[1749018368186,0.63127201,105250.0,105240.0,0.89576]
[1749018368394,0.61350596,105250.0,105240.0,0.89576]
[1749018369700,0.61345461,105250.0,105240.0,0.89576]
[1749018370136,0.5193543,105250.0,105240.0,0.89576]
[1749018370793,0.0679,105250.0,105240.0,0.89576]
[1749018371045,0.052,105250.0,105240.0,0.89576]
[1749018373075,0.052,105250.0,105240.0,0.92746]
[1749018376870,0.052,105250.0,105240.0,0.92746]
[1749018388924,0.052,105250.0,105240.0,0.92742]
[1749018392702,0.052,105250.0,105240.0,1.0232743]
[1749018393789,0.05,105250.0,105240.0,1.0232743]
[1749018394226,0.051,105250.0,105240.0,1.0232743]
[1749018395340,0.052,105250.0,105240.0,1.0242743]
[1749018398864,0.002,105250.0,105240.0,1.0242743]
[1749018402586,0.05822871,105260.0,105240.0,1.04498035]
[1749018402812,0.05822871,105260.0,105250.0,0.03507485]
[1749018404329,0.05922871,105260.0,105250.0,0.03507485]
[1749018404750,0.05822871,105260.0,105250.0,0.03507485]
[1749018405182,0.05922871,105260.0,105250.0,0.03607485]
[1749018405418,0.06022871,105260.0,105250.0,0.03607485]
[1749018405654,0.05922871,105260.0,105250.0,0.03607485]
[1749018406080,0.06022871,105260.0,105250.0,0.03707485]
[1749018406953,0.05822871,105260.0,105250.0,0.4319809]
[1749018407159,0.05822871,105260.0,105250.0,0.42960605]
[1749018407369,0.05922871,105260.0,105250.0,0.0337]
[1749018407585,0.06022871,105260.0,105250.0,0.03807482]
[1749018408919,0.06022871,105260.0,105250.0,0.53083517]
[1749018409148,0.06022871,105260.0,105250.0,0.52846035]
[1749018409385,0.06022871,105260.0,105250.0,0.86846035]
[1749018412192,0.06022871,105260.0,105250.0,1.35496035]
[1749018419875,0.06022871,105260.0,105250.0,1.96216035]
[1749018420920,0.06022871,105260.0,105250.0,2.25028035]
[1749018422805,0.06022871,105260.0,105250.0,1.97692035]
[1749018424747,0.06022871,105260.0,105250.0,1.64308035]
[1749018428810,0.00692264,105260.0,105250.0,1.64308035]
[1749018430078,0.00692264,105260.0,105250.0,2.25020035]
[1749018432390,0.00692264,105260.0,105250.0,1.68876035]
[1749018432604,0.00692264,105260.0,105250.0,1.97680035]
[1749018434989,0.00692264,105260.0,105250.0,2.08080035]
[1749018435238,0.00692264,105260.0,105250.0,1.64300035]
[1749018435456,0.00692264,105260.0,105250.0,2.43482353]
[1749018435997,0.00492264,105260.0,105250.0,2.40144725]
[1749018436257,0.00692264,105260.0,105250.0,2.40544725]
[1749018436491,0.00692264,105260.0,105250.0,2.80544725]
[1749018436699,0.00592264,105260.0,105250.0,2.80344725]
[1749018436912,0.00692264,105260.0,105250.0,2.80744725]
[1749018437397,0.00592264,105260.0,105250.0,2.80544725]
[1749018437614,0.00692264,105260.0,105250.0,2.80844725]
[1749018438501,0.00692264,105260.0,105250.0,3.15844725]
[1749018438721,0.00692264,105260.0,105250.0,2.80844725]
[1749018440017,0.00692264,105260.0,105250.0,3.41552725]
[1749018441802,0.00692264,105260.0,105250.0,3.0186212]
[1749018442499,0.00692264,105260.0,105250.0,2.7452612]
[1749018443415,0.00692264,105260.0,105250.0,2.77557882]
[1749018446334,0.00692264,105260.0,105250.0,2.83872487]
[1749018446759,0.00692264,105260.0,105250.0,2.44181882]
[1749018450007,0.00692264,105260.0,105250.0,3.04885882]
[1749018452208,0.00692264,105260.0,105250.0,2.77553882]
[1749018456432,0.00692264,105260.0,105250.0,2.44181882]
[1749018457283,0.00692264,105260.0,105250.0,2.4115012]
[1749018459013,0.00692264,105260.0,105250.0,2.80840725]
[1749018459746,0.01776478,105270.0,105260.0,0.31454085]
[1749018459975,0.01776478,105270.0,105260.0,1.84152892]
[1749018460437,0.01776478,105270.0,105260.0,2.24152892]
[1749018461099,0.01876478,105270.0,105260.0,2.24352892]
[1749018461372,0.01976478,105270.0,105260.0,1.97224892]
[1749018461556,0.01976478,105270.0,105260.0,1.72628892]
[1749018462424,0.05136478,105270.0,105260.0,0.84471682]
[1749018462720,0.05136478,105270.0,105260.0,1.63852892]
[1749018462882,0.05136478,105270.0,105260.0,0.83017597]
[1749018463106,0.05136478,105270.0,105260.0,1.91190807]
[1749018463301,0.05136478,105270.0,105260.0,1.51190807]
[1749018465215,0.05136478,105270.0,105260.0,1.22398807]
[1749018465425,0.05136478,105270.0,105260.0,0.61667597]
[1749018465647,0.05136478,105270.0,105260.0,0.77842]
[1749018466697,0.05136478,105270.0,105260.0,0.29192]
[1749018469869,0.05136478,105270.0,105260.0,0.89892]
[1749018474495,0.05136478,105270.0,105260.0,0.611]
[1749018474743,0.05136478,105270.0,105260.0,0.89892]
[1749018479843,0.05136478,105270.0,105260.0,0.611]
[1749018480051,0.05136478,105270.0,105260.0,0.89892]
[1749018480641,0.05136478,105270.0,105260.0,0.52328]
[1749018480890,0.05136478,105270.0,105260.0,0.89892]
[1749018495215,0.05136478,105270.0,105260.0,0.611]
[1749018495451,0.05136478,105270.0,105260.0,0.89892]
[1749018500133,0.14721908,105270.0,105260.0,0.89888]
[1749018501268,0.14721908,105270.0,105260.0,0.89884]
[1749018502761,0.14721908,105270.0,105260.0,0.61096]
[1749018503017,0.48721908,105270.0,105260.0,0.52328]
[1749018503267,0.48721908,105270.0,105260.0,0.89884]
[1749018503732,0.50399088,105270.0,105260.0,0.89684]
[1749018503970,0.48621908,105270.0,105260.0,0.89684]
[1749018504206,0.48621908,105270.0,105260.0,0.89784]
[1749018504465,0.48621908,105270.0,105260.0,0.89584]
[1749018504666,0.48521908,105270.0,105260.0,0.89584]
[1749018504933,0.50299086,105270.0,105260.0,0.89684]
[1749018505370,0.48521908,105270.0,105260.0,0.89684]
[1749018505581,0.50299086,105270.0,105260.0,0.89684]
[1749018505809,0.48521908,105270.0,105260.0,0.89684]
[1749018506702,0.50299114,105270.0,105260.0,0.89684]
[1749018506920,0.50299111,105270.0,105260.0,0.89684]
[1749018507351,0.48521908,105270.0,105260.0,0.89684]
[1749018507907,0.50299111,105270.0,105260.0,0.89684]
[1749018508131,0.48521908,105270.0,105260.0,0.89684]
[1749018508351,0.50299112,105270.0,105260.0,0.89684]
[1749018508566,0.48521908,105270.0,105260.0,0.89684]
[1749018509199,0.50299112,105270.0,105260.0,0.89684]
[1749018509411,0.48521908,105270.0,105260.0,0.89684]
[1749018509648,0.50299112,105270.0,105260.0,0.89684]
[1749018510085,0.48521908,105270.0,105260.0,0.89684]
[1749018510495,0.50299112,105270.0,105260.0,0.89684]
[1749018510823,0.48521908,105270.0,105260.0,0.89684]
[1749018513215,0.50299134,105270.0,105260.0,0.89684]
[1749018513428,0.48521908,105270.0,105260.0,0.89684]
[1749018513831,0.50299147,105270.0,105260.0,0.89684]
[1749018514339,0.50299146,105270.0,105260.0,0.89684]
[1749018514564,0.48521908,105270.0,105260.0,0.89684]
[1749018515246,0.50299151,105270.0,105260.0,0.89684]
[1749018515488,0.48521908,105270.0,105260.0,0.89684]
[1749018515898,0.50299153,105270.0,105260.0,0.89684]
[1749018516102,0.48521908,105270.0,105260.0,0.89684]
[1749018516757,0.50299153,105270.0,105260.0,0.89684]
[1749018516980,0.48521908,105270.0,105260.0,0.89684]
[1749018518373,0.50299133,105270.0,105260.0,0.89684]
[1749018518593,0.48521908,105270.0,105260.0,0.89684]
[1749018519025,0.50299133,105270.0,105260.0,0.89684]
[1749018519660,0.48521908,105270.0,105260.0,0.89684]
[1749018519878,0.50299133,105270.0,105260.0,0.89684]
[1749018520098,0.48521908,105270.0,105260.0,0.89684]
[1749018520952,0.50299157,105270.0,105260.0,0.89684]
[1749018521147,0.48521908,105270.0,105260.0,0.89684]
[1749018521364,0.50299165,105270.0,105260.0,0.89684]
[1749018521570,0.48521908,105270.0,105260.0,0.89684]
[1749018521792,0.50299485,105270.0,105260.0,0.89684]
[1749018522006,0.48521908,105270.0,105260.0,0.89684]
[1749018522659,0.50299527,105270.0,105260.0,0.89684]
[1749018522916,0.48521908,105270.0,105260.0,0.89684]
[1749018523343,0.50299528,105270.0,105260.0,0.89684]
[1749018523561,0.48521908,105270.0,105260.0,0.89684]
[1749018525377,0.5029953,105270.0,105260.0,0.89684]
[1749018525581,0.48521908,105270.0,105260.0,0.89684]
[1749018525789,0.50299543,105270.0,105260.0,0.89684]
[1749018525989,0.48521908,105270.0,105260.0,0.89684]
[1749018526424,0.50299546,105270.0,105260.0,0.89684]
[1749018526840,0.48521908,105270.0,105260.0,0.89684]
[1749018527479,0.50299546,105270.0,105260.0,0.89684]
[1749018527691,0.48521908,105270.0,105260.0,0.60896]
[1749018527906,0.50299546,105270.0,105260.0,0.89684]
[1749018528098,0.48521908,105270.0,105260.0,0.89684]
[1749018528517,0.50299546,105270.0,105260.0,0.89684]
[1749018528718,0.48521908,105270.0,105260.0,0.89684]
[1749018529873,0.50299546,105270.0,105260.0,0.89684]
[1749018530094,0.48521908,105270.0,105260.0,0.89684]
[1749018531410,0.50299561,105270.0,105260.0,0.89684]
[1749018531829,0.48521908,105270.0,105260.0,0.89684]
[1749018532460,0.50299561,105270.0,105260.0,0.89684]
[1749018532676,0.48521908,105270.0,105260.0,0.89684]
[1749018532887,0.50299561,105270.0,105260.0,0.89684]
[1749018533288,0.48521908,105270.0,105260.0,0.89684]
[1749018533995,0.50299562,105270.0,105260.0,0.89684]
[1749018534165,0.48521908,105270.0,105260.0,0.89684]
[1749018534799,0.50299562,105270.0,105260.0,0.89684]
[1749018535169,0.48521908,105270.0,105260.0,0.89684]
[1749018535396,0.50299562,105270.0,105260.0,0.89684]
[1749018535551,0.48521908,105270.0,105260.0,0.89684]
[1749018535751,0.50299562,105270.0,105260.0,0.89684]
[1749018535960,0.48521908,105270.0,105260.0,0.89684]
[1749018536577,0.56863553,105270.0,105260.0,0.89684]
[1749018536784,0.55085899,105270.0,105260.0,0.89684]
[1749018538113,0.56863553,105270.0,105260.0,0.89684]
[1749018538294,0.55085899,105270.0,105260.0,0.89684]
[1749018539402,0.56863552,105270.0,105260.0,0.89684]
[1749018539619,0.55085899,105270.0,105260.0,0.89684]
[1749018540048,0.56863552,105270.0,105260.0,0.89684]
[1749018540268,0.55085899,105270.0,105260.0,0.89684]
[1749018540730,0.55087639,105270.0,105260.0,0.89684]
[1749018541407,0.55087639,105270.0,105260.0,1.24684]
[1749018541631,0.51927639,105270.0,105260.0,1.24684]
[1749018541864,0.13139646,105270.0,105260.0,0.92984]
[1749018542074,0.11361908,105270.0,105260.0,0.89684]
[1749018546250,0.13139648,105270.0,105260.0,0.89684]
[1749018546703,0.17929694,105270.0,105260.0,0.89684]
[1749018546910,0.13139609,105270.0,105260.0,0.89684]
[1749018547355,0.17929673,105270.0,105260.0,0.89684]
[1749018547825,0.19707413,105270.0,105260.0,0.89684]
[1749018548037,0.17929673,105270.0,105260.0,0.89684]
[1749018550380,0.19707367,105270.0,105260.0,0.89684]
[1749018550807,0.17929673,105270.0,105260.0,0.89684]
[1749018551231,0.19710764,105270.0,105260.0,0.89684]
[1749018551455,0.1793307,105270.0,105260.0,0.89684]
[1749018551899,0.19710764,105270.0,105260.0,0.89684]
[1749018552331,0.1793307,105270.0,105260.0,0.89684]
[1749018553647,0.1793307,105270.0,105260.0,0.89676]
[1749018553859,0.19710759,105270.0,105260.0,0.89676]
[1749018554152,0.1793307,105270.0,105260.0,0.89676]
[1749018554860,0.19710762,105270.0,105260.0,0.89676]
[1749018555106,0.1793307,105270.0,105260.0,0.89676]
[1749018555345,0.1793265,105270.0,105260.0,0.89676]
[1749018556916,0.19710327,105270.0,105260.0,0.89676]
[1749018557365,0.1793265,105270.0,105260.0,0.89676]
[1749018557788,0.19710325,105270.0,105260.0,0.89676]
[1749018557974,0.1793265,105270.0,105260.0,0.89676]
[1749018558432,0.19710314,105270.0,105260.0,0.89676]
[1749018558892,0.1793265,105270.0,105260.0,0.89676]
[1749018559315,0.17932352,105270.0,105260.0,0.89676]
[1749018560016,0.19710016,105270.0,105260.0,0.89676]
[1749018560227,0.17932352,105270.0,105260.0,0.89676]
[1749018561322,0.17932352,105270.0,105260.0,0.91246]
[1749018561561,0.19710016,105270.0,105260.0,0.91246]
[1749018561993,0.17932352,105270.0,105260.0,0.91246]
[1749018562428,0.19710016,105270.0,105260.0,0.91246]
[1749018562679,0.17932352,105270.0,105260.0,0.91246]
[1749018563073,0.19710017,105270.0,105260.0,0.91246]
[1749018563344,0.17930695,105270.0,105260.0,0.91246]
[1749018563574,0.19707918,105270.0,105260.0,0.91246]
[1749018563841,0.17930695,105270.0,105260.0,0.91246]
[1749018564077,0.17930695,105270.0,105260.0,0.92876]
[1749018565020,0.13139103,105270.0,105260.0,0.92876]
[1749018565258,0.11361908,105270.0,105260.0,0.92876]
[1749018565958,0.13139108,105270.0,105260.0,0.92876]
[1749018566190,0.11361908,105270.0,105260.0,0.92876]
[1749018566883,0.13139108,105270.0,105260.0,0.92876]
[1749018568962,0.03553678,105270.0,105260.0,0.92876]
[1749018569899,0.03553678,105270.0,105260.0,0.89676]
[1749018574082,0.06743678,105270.0,105260.0,0.89664]
[1749018574606,0.05123678,105270.0,105260.0,0.89664]
[1749018574812,0.03553678,105270.0,105260.0,0.89664]
[1749018588938,0.017772,105270.0,105260.0,0.89664]
[1749018590716,0.017772,105270.0,105260.0,0.60888]
[1749018590929,0.017772,105270.0,105260.0,0.8966]
[1749018592892,0.017772,105270.0,105260.0,0.9282]
[1749018599985,0.017772,105270.0,105260.0,0.92816]
[1749018600712,0.017772,105270.0,105260.0,0.92812]
[1749018600949,0.017772,105270.0,105260.0,0.60884]
[1749018601220,0.049472,105270.0,105260.0,0.60884]
[1749018601466,0.049472,105270.0,105260.0,0.89652]
[1749018601687,0.049472,105270.0,105260.0,0.52128]
[1749018601925,0.049472,105270.0,105260.0,0.89652]
[1749018613368,0.049472,105270.0,105260.0,0.89648]
[1749018621066,0.017772,105270.0,105260.0,0.89648]
[1749018622887,0.017772,105270.0,105260.0,0.62319099]
[1749018629942,0.017772,105270.0,105260.0,0.89659099]
[1749018639053,0.048872,105270.0,105260.0,0.89659099]
[1749018642415,0.048872,105270.0,105260.0,0.52139099]
[1749018642630,0.048872,105270.0,105260.0,0.89651099]
[1749018644672,0.048872,105270.0,105260.0,0.52139099]
[1749018644925,0.1447263,105270.0,105260.0,0.89651099]
[1749018650032,0.1136263,105270.0,105260.0,0.89651099]
[1749018655936,0.1458263,105270.0,105260.0,0.52139099]
[1749018656209,0.1458263,105270.0,105260.0,0.60891099]
[1749018656210,0.69397028,105270.0,105260.0,0.60891099]
[1749018656439,0.64602688,105270.0,105260.0,0.89651099]
[1749018656868,0.66378988,105270.0,105260.0,0.89651099]
[1749018657076,0.64602688,105270.0,105260.0,0.89556]
[1749018657286,0.64602688,105270.0,105260.0,0.89456]
[1749018657528,0.64802688,105270.0,105260.0,0.89556]
[1749018657744,0.67614398,105270.0,105260.0,0.89556]
[1749018657953,0.60020302,105270.0,105260.0,0.89556]
[1749018658388,0.61896634,105270.0,105260.0,0.89656]
[1749018658600,0.60120302,105270.0,105260.0,0.89656]
[1749018658818,0.60120302,105270.0,105260.0,0.60896]
[1749018659030,0.0316,105250.0,105240.0,0.02]
[1749018659257,0.4674543,105250.0,105240.0,0.3076]
[1749018659481,0.48521762,105250.0,105240.0,0.3076]
[1749018659692,0.4959673,105250.0,105240.0,0.3076]
[1749018659908,0.4959673,105250.0,105240.0,0.91456]
[1749018660128,0.4959673,105250.0,105240.0,0.91756]
[1749018660349,0.4969673,105250.0,105240.0,0.91756]
[1749018660567,0.55240163,105250.0,105240.0,0.54444]
[1749018660796,0.5780889,105250.0,105240.0,0.91956]
[1749018661279,0.5958501,105250.0,105240.0,0.54444]
[1749018661490,0.5958501,105250.0,105240.0,0.9166]
[1749018661491,0.5770889,105250.0,105240.0,0.9166]
[1749018661934,0.5780889,105250.0,105240.0,0.9176]
[1749018662148,0.52926879,105250.0,105240.0,0.9156]
[1749018662363,0.51250815,105250.0,105240.0,0.9166]
[1749018662785,0.53026879,105250.0,105240.0,0.9166]
[1749018663201,0.51250815,105250.0,105240.0,0.9166]
[1749018663880,0.53026873,105250.0,105240.0,0.9166]
[1749018664093,0.51250815,105250.0,105240.0,0.9166]
[1749018664756,0.52192713,105250.0,105240.0,0.9166]
[1749018666062,0.53968432,105250.0,105240.0,0.9166]
[1749018666272,0.52192713,105250.0,105240.0,0.9166]
[1749018667331,0.55744157,105250.0,105240.0,0.9166]
[1749018667545,0.53968435,105250.0,105240.0,0.9166]
[1749018668198,0.55744157,105250.0,105240.0,0.9166]
[1749018668402,0.55744156,105250.0,105240.0,0.9166]
[1749018668611,0.53968435,105250.0,105240.0,0.9166]
[1749018669045,0.55744157,105250.0,105240.0,0.9166]
[1749018669257,0.53968435,105250.0,105240.0,0.9166]
[1749018670746,0.55744163,105250.0,105240.0,0.9166]
[1749018670956,0.53968435,105250.0,105240.0,0.9166]
[1749018674223,0.55744048,105250.0,105240.0,0.9166]
[1749018674427,0.53968435,105250.0,105240.0,0.9166]
[1749018674630,0.55744012,105250.0,105240.0,0.9166]
[1749018674845,0.5574401,105250.0,105240.0,0.54144]
[1749018675054,0.5574401,105250.0,105240.0,0.91664]
[1749018675266,0.53968435,105250.0,105240.0,0.91664]
[1749018678199,0.55743921,105250.0,105240.0,0.91664]
[1749018678406,0.53968435,105250.0,105240.0,0.91664]
[1749018679958,0.55743925,105250.0,105240.0,0.91664]
[1749018680157,0.53968435,105250.0,105240.0,0.91664]
[1749018680789,0.55743924,105250.0,105240.0,0.91664]
[1749018681011,0.53968435,105250.0,105240.0,0.91664]
[1749018681222,0.55743924,105250.0,105240.0,0.91664]
[1749018681434,0.53968435,105250.0,105240.0,0.91664]
[1749018681751,0.55743924,105250.0,105240.0,0.91664]
[1749018681950,0.53968435,105250.0,105240.0,0.91664]
[1749018684929,0.55743852,105250.0,105240.0,0.91664]
[1749018685143,0.55743844,105250.0,105240.0,0.91664]
[1749018685342,0.53968435,105250.0,105240.0,0.91664]
[1749018685758,0.55743856,105250.0,105240.0,0.91664]
[1749018685963,0.55743857,105250.0,105240.0,0.91664]
[1749018686203,0.53968435,105250.0,105240.0,0.91664]
[1749018686469,0.55743857,105250.0,105240.0,0.91664]
[1749018686712,0.53968435,105250.0,105240.0,0.91664]
[1749018686998,0.55743857,105250.0,105240.0,0.91664]
[1749018687232,0.53968435,105250.0,105240.0,0.91664]
[1749018687505,0.55743849,105250.0,105240.0,0.91664]
[1749018687745,0.53968435,105250.0,105240.0,0.91664]
[1749018690676,0.55743773,105250.0,105240.0,0.91664]
[1749018691254,0.53968435,105250.0,105240.0,0.91664]
[1749018691518,0.55743773,105250.0,105240.0,0.91664]
[1749018691772,0.53968435,105250.0,105240.0,0.91664]
[1749018695094,0.55743839,105250.0,105240.0,0.91664]
[1749018695317,0.53968435,105250.0,105240.0,0.91664]
[1749018695977,0.55743841,105250.0,105240.0,0.91664]
[1749018696191,0.53968435,105250.0,105240.0,0.91664]
[1749018698010,0.55743844,105250.0,105240.0,0.91664]
[1749018698241,0.53968435,105250.0,105240.0,0.54144]
[1749018698499,0.53968435,105250.0,105240.0,0.91664]
[1749018698699,0.52428435,105250.0,105240.0,0.91664]
[1749018698902,0.50808435,105250.0,105240.0,0.91664]
[1749018700246,0.52583846,105250.0,105240.0,0.91664]
[1749018700737,0.59457101,105250.0,105240.0,0.91664]
[1749018700968,0.52905213,105250.0,105240.0,0.94734]
[1749018701226,0.52905211,105250.0,105240.0,0.94734]
[1749018701466,0.52905214,105250.0,105240.0,0.94734]
[1749018701725,0.54680718,105250.0,105240.0,0.94734]
[1749018701984,0.52905214,105250.0,105240.0,0.94734]
[1749018702495,0.51963316,105250.0,105240.0,0.94734]
[1749018702763,0.53738821,105250.0,105240.0,0.93164]
[1749018702970,0.51963316,105250.0,105240.0,0.93164]
[1749018703928,0.51963316,105250.0,105240.0,0.91664]
[1749018704382,0.52917457,105250.0,105240.0,0.91664]
[1749018704613,0.51963316,105250.0,105240.0,0.91664]
[1749018704834,0.60294457,105250.0,105240.0,0.91664]
[1749018705052,0.5851892,105250.0,105240.0,0.91664]
[1749018705272,0.60294457,105250.0,105240.0,0.91664]
[1749018705499,0.5851892,105250.0,105240.0,0.91664]
[1749018705749,0.60294457,105250.0,105240.0,0.91664]
[1749018706193,0.5851892,105250.0,105240.0,0.91664]
[1749018707233,0.51963316,105250.0,105240.0,0.91664]
[1749018708077,0.53738857,105250.0,105240.0,0.91664]
[1749018708302,0.53738848,105250.0,105240.0,0.91664]
[1749018708505,0.51963316,105250.0,105240.0,0.91664]
[1749018710728,0.5373885,105250.0,105240.0,0.91664]
[1749018710945,0.51963316,105250.0,105240.0,0.91664]
[1749018711360,0.53738875,105250.0,105240.0,0.91664]
[1749018711571,0.51963316,105250.0,105240.0,0.91664]
[1749018711786,0.53738878,105250.0,105240.0,0.91664]
[1749018711985,0.51963316,105250.0,105240.0,0.91664]
[1749018713010,0.53738876,105250.0,105240.0,0.91664]
[1749018713213,0.53738875,105250.0,105240.0,0.91664]
[1749018713429,0.51963316,105250.0,105240.0,0.91664]
[1749018715538,0.51963316,105250.0,105240.0,0.94734]
[1749018716620,0.53738861,105250.0,105240.0,0.94734]
[1749018716828,0.51963316,105250.0,105240.0,0.94734]
[1749018717261,0.53738864,105250.0,105240.0,0.94734]